Cogmind - Beta 15 @@@ ROGUE MODE // 2025.08.06 @ 14:37:33 Player: Inverisimilidude Result: Destroyed by S-27 Virus with Autogun Performance ------------- Evolutions (4) 2000 Regions Visited (13) 2600 Robots Destroyed (64) 320 Value Destroyed (2152) 2152 Prototype IDs (37) 740 Alien Tech Used (0) 0 Bonus (1494) 1494 TOTAL SCORE: 9306 Bonus ------- Follower Combat Kills 94 Entered DSFs 500 Aligned with FarCom 300 Met Data Miner 300 Acquired ECA 300 Cogmind --------- Core Integrity 0/850 Matter 237/300 Energy 100/100 System Corruption 0% Temperature Cool (0) Movement Core (50) Location -5/Proximity Caves Parts ------- > --- POWER (1) -------- (None) > --- PROPULSION (5) --- (None) > --- UTILITY (6) ------ Encrypted Comm Array > --- WEAPON (3) ------- (None) > --- INVENTORY (5) ---- Advanced Assault Cannon Peak State ------------ > --- POWER ------------ Reinforced Deuterium Engine > --- PROPULSION ------- Xenon Bombardment Thruster Xenon Bombardment Thruster Xenon Bombardment Thruster Xenon Bombardment Thruster Cooled Cesium-ion Thruster > --- UTILITY ---------- Structural Scanner Active Sensor Suite Advanced Terrain Scanner Advanced Terrain Scan Processor > --- WEAPON ----------- Remote Datajack Heavy Pick > --- INVENTORY -------- Deuterium Engine Advanced Heat Sink Cloak of Protection Advanced Assault Cannon Heavy Missile Launcher [Rating: 74] Favorites ----------- Power Ion Engine Engine Ion Engine Propulsion Compact Wheel Treads Light Treads Wheel Compact Wheel Flight Unit Cooled Cesium-ion Thruster Utility Improved Melee Analysis Suite Device Seismic Detector Storage High-capacity Storage Unit Processor Improved Melee Analysis Suite Protection Light Armor Plating Weapon Minigun Energy Gun Small Laser Energy Cannon Heavy Particle Cannon Ballistic Gun Minigun Launcher Heavy Missile Launcher Special Weapon Remote Datajack Slashing Weapon Power Sword Piercing Weapon Heavy Pick Build | -11 -10 -9 -9 -9 -8 -8 -7 -7 -6 -6 -6 -6 -5 ------- Run | Yrd Mat Mat Min Exi Min Mat Fac DSF Fac Low Low Dat Pro Slots Evolved 8 | . . 2 . . . 2 2 . 2 . . . . Power . | . . . . . . . . . . . . . . Propulsion 3 | . . 1 . . . . 1 . 1 . . . . Utility 4 | . . 1 . . . 1 1 . 1 . . . . Weapon 1 | . . . . . . 1 . . . . . . . Parts Attached 72 | 7 2 1 3 1 1 19 2 14 16 1 3 . 2 Power 5 | 1 . . . . . 2 . 1 1 . . . . Engine 5 | 1 . . . . . 2 . 1 1 . . . . Core . | . . . . . . . . . . . . . . Reactor . | . . . . . . . . . . . . . . Propulsion 16 | 2 1 1 . . . 4 1 1 5 . 1 . . Treads 7 | . 1 1 . . . 3 1 1 . . . . . Leg . | . . . . . . . . . . . . . . Wheel 3 | 2 . . . . . 1 . . . . . . . Hover . | . . . . . . . . . . . . . . Flight 6 | . . . . . . . . . 5 . 1 . . Utility 31 | 2 1 . 1 1 1 7 1 6 7 1 2 . 1 Device 14 | 1 . . 1 . 1 3 1 1 3 1 1 . 1 Storage 4 | 1 1 . . 1 . 1 . . . . . . . Processor 6 | . . . . . . . . 1 4 . 1 . . Hackware . | . . . . . . . . . . . . . . Protection 7 | . . . . . . 3 . 4 . . . . . Artifact . | . . . . . . . . . . . . . . Weapon 20 | 2 . . 2 . . 6 . 6 3 . . . 1 Energy Gun 3 | 2 . . . . . 1 . . . . . . . Energy Cannon 1 | . . . . . . 1 . . . . . . . Ballistic Gun 9 | . . . 1 . . 4 . 4 . . . . . Ballistic Cannon . | . . . . . . . . . . . . . . Launcher 3 | . . . . . . . . 2 1 . . . . Special Weapon 2 | . . . 1 . . . . . 1 . . . . Impact Weapon . | . . . . . . . . . . . . . . Slashing Weapon 1 | . . . . . . . . . . . . . 1 Piercing Weapon 1 | . . . . . . . . . 1 . . . . Special Melee Weapon . | . . . . . . . . . . . . . . Unidentified Prototypes 3 | . . . . . . 1 . . 2 . . . . Parts Lost 27 | . . 1 1 . 1 6 . 7 2 4 . . 5 Power 3 | . . . . . . 1 . 1 . . . . 1 Propulsion 8 | . . . . . . 3 . . 2 2 . . 1 Utility 7 | . . . . . 1 . . 3 . 2 . . 1 Weapon 9 | . . 1 1 . . 2 . 3 . . . . 2 Highest Loss Streak 5 | . . 1 1 . 1 5 . 3 2 3 . . 5 To Critical Strikes 1 | . . . . . . 1 . . . . . . . Average Backups 10 | 1 6 6 4 5 8 18 22 21 5 4 4 4 2 Power . | . 1 1 1 1 1 1 1 . 1 . . . . Propulsion 2 | . 3 3 3 3 3 4 6 6 . . . . . Utility 3 | . 1 1 . 1 3 7 7 7 2 2 1 1 . Weapon 2 | . 1 1 . . . 3 7 5 1 1 2 3 2 Tool/Special . | . . . . . . . . . . . . . . Unused Backups 15 | . . . . . . 6 . 1 6 . 1 . 1 Power 2 | . . . . . . 2 . . . . . . . Propulsion 2 | . . . . . . 1 . . 1 . . . . Utility 6 | . . . . . . 1 . . 4 . 1 . . Weapon 4 | . . . . . . 2 . . 1 . . . 1 Tool/Special 1 | . . . . . . . . 1 . . . . . Average Slot Usage (%) 86 | . 100 87 98 100 97 93 99 98 86 68 65 66 41 Engine 8 | . 14 11 11 11 11 8 7 6 6 6 6 6 3 Treads 12 | . 13 22 22 22 22 17 23 23 1 . . . . Wheel 6 | . 14 11 11 11 11 8 7 7 . . . . . Flight 4 | . . . . . . . . . 28 8 12 13 7 Device 17 | . 14 11 21 22 19 15 22 15 19 19 20 20 13 Storage 6 | . 14 11 11 11 11 9 7 7 . . . . . Processor 5 | . . . . . . . . 1 13 20 17 20 12 Protection 2 | . . . . . . 6 7 11 . . . . . Energy Gun 5 | . 28 21 7 . . 5 . . . . . . . Ballistic Gun 7 | . . . 11 11 11 15 23 19 . . . . . Special Weapon 3 | . . . 2 11 11 2 . . 5 6 6 6 3 Peak Build Rating 74 | 7 7 8 11 12 13 33 36 44 74 50 44 43 46 Average Rating 28 | 4 7 7 10 11 11 24 35 38 59 46 42 43 26 On Entrance 24 | . 7 7 7 11 12 9 32 36 42 54 42 43 43 Naked Turns 70 | . . . . . . . . . . . . . 70 Heaviest Build 109 | 14 29 29 29 49 49 101 102 109 109 23 24 19 27 Greatest Support 43 | 26 26 16 40 16 16 43 16 16 30 27 19 19 19 Greatest Overweight (x) 6 | . 1 1 1 3 3 6 6 6 6 1 1 . 4 Average Overweight (x) 1 | . . 1 . 1 2 3 6 6 . . . . . Largest Inventory Capacity 25 | 8 15 15 15 20 20 25 25 25 25 5 5 5 5 Average Capacity 14 | 6 14 15 15 16 20 21 25 25 5 5 5 5 5 Most Carried 25 | 6 7 7 6 7 9 25 23 25 22 5 5 4 4 Average Carried 10 | 2 6 6 4 5 8 18 22 22 5 4 4 4 2 Final Capacity 25 | 8 15 15 15 20 20 25 25 25 5 5 5 5 5 Final Carried 24 | 6 7 7 4 7 8 24 22 22 4 4 4 4 1 Class Distribution -------------------- 37% | Mutant 35% | Skirmisher 15% | Sprinter 5% | Scout Dominant Class ---------------- Mutant | -10/Materials Mutant | -9/Materials Mutant | -9/Mines Mutant | -9/Exiles Skirmisher | -8/Mines Skirmisher | -8/Materials Skirmisher | -7/Factory Skirmisher | -7/DSF Scout | -6/Factory Mutant | -6/Lower Caves Sprinter | -6/Lower Caves Sprinter | -6/Data Miner Mutant | -5/Proximity Caves Resources | -11 -10 -9 -9 -9 -8 -8 -7 -7 -6 -6 -6 -6 -5 ----------- Run | Yrd Mat Mat Min Exi Min Mat Fac DSF Fac Low Low Dat Pro Matter Collected 1906 | 249 41 . 17 31 35 597 . 396 354 133 35 . 18 Remotely . | . . . . . . . . . . . . . . Salvage Created 2577 | 12 97 . 17 . . 1354 . 526 445 63 . . 63 Parts 149 | 4 3 . . . . 75 . 45 16 1 . . 5 Haulers Intercepted 3 | . . . . . . 2 . . 1 . . . . Recyclers Shooed 2 | . . . . . . 2 . . . . . . . Parts Field Recycled . | . . . . . . . . . . . . . . Retrieved Matter . | . . . . . . . . . . . . . . Parts Self-Destructed 22 | . . . . . . . . . . . 8 . 14 Prevented . | . . . . . . . . . . . . . . Kills | -11 -10 -9 -9 -9 -8 -8 -7 -7 -6 -6 -6 -6 -5 ------- Run | Yrd Mat Mat Min Exi Min Mat Fac DSF Fac Low Low Dat Pro Combat Hostiles Destroyed 46 | . 2 . 1 . . 17 . 13 4 5 . . 4 Guns 26 | . 2 . 1 . . 14 . 9 . . . . . Cannons 1 | . . . . . . 1 . . . . . . . AOE 19 | . . . . . . 2 . 4 4 5 . . 4 Classes Destroyed 13 | 1 1 . 1 . . 6 . 3 1 . . . . Worker 6 | . . . . . . 4 . . 2 . . . . Tunneler 1 | 1 . . . . . . . . . . . . . Hauler 3 | . . . . . . 2 . . 1 . . . . Recycler 5 | . . . . . . 3 . . 2 . . . . Operator 3 | . . . . . . 2 . . 1 . . . . Watcher 1 | . . . . . . . . . 1 . . . . Swarmer 15 | . . . . . . . . 4 4 3 . . 4 Grunt 17 | . 2 . . . . 12 . 2 . 1 . . . Sentry 3 | . . . . . . 3 . . . . . . . Specialist 3 | . . . . . . . . 3 . . . . . Hunter 5 | . . . . . . 2 . 2 . 1 . . . Heavy 2 | . . . . . . . . 2 . . . . . Assembled 1 | . . . 1 . . . . . . . . . . Best Kill Streak 6 | 1 2 . 1 . . 6 . 6 4 5 . . 4 Combat Bots Only 6 | . 2 . 1 . . 4 . 6 4 5 . . 4 Max Kills in Single Turn 3 | 1 1 . 1 . . 2 . 3 2 2 . . 3 Gunslinging . | . . . . . . . . . . . . . . Exploded 3 | . . . . . . 2 . 3 2 2 . . 3 Melee . | . . . . . . . . . . . . . . Uniques/NPCs Destroyed . | . . . . . . . . . . . . . . Combat | -11 -10 -9 -9 -9 -8 -8 -7 -7 -6 -6 -6 -6 -5 -------- Run | Yrd Mat Mat Min Exi Min Mat Fac DSF Fac Low Low Dat Pro Hostile Shots Fired 386 | . 11 24 6 . 12 76 . 106 10 31 . . 110 Missed 139 | . 2 8 2 . 6 23 . 34 6 10 . . 48 Hits 247 | . 9 16 4 . 6 53 . 72 4 21 . . 62 Melee 1 | . . . . . . . . . . 1 . . . Projectile 246 | . 9 16 4 . 6 53 . 72 4 20 . . 62 AOE 2 | . . . . . . 2 . . . . . . . Critical Strikes 4 | . . . . . . 3 . . . . . . 1 Part Disruptions 1 | . . . 1 . . . . . . . . . . Damage Taken 4796 | . 150 193 46 . 119 1007 . 1623 178 433 . . 1047 Core 1104 | . . 58 . . 40 31 . 123 46 92 . . 714 Absorbed by Shields . | . . . . . . . . . . . . . . Redirected to Shielding 52 | . . . . . . . . 52 . . . . . Core Remaining (%) 90 | 100 100 . . . 75 94 . 82 . . . . . Volleys Fired 135 | 1 6 . 13 . 1 59 . 33 11 7 . . 4 Largest 3 | 2 2 . 2 . 1 3 . 3 1 1 . . 1 Hottest 123 | 80 80 . 100 . 100 123 . 86 39 39 . . 39 Shots Fired 325 | 2 12 . 16 . 1 173 . 99 11 7 . . 4 Gun 280 | 2 12 . 11 . . 160 . 95 . . . . . Cannon 12 | . . . . . . 12 . . . . . . . Launcher 17 | . . . . . . . . 4 4 5 . . 4 Special 16 | . . . 5 . 1 1 . . 7 2 . . . Kinetic 227 | . . . 8 . . 124 . 95 . . . . . Thermal 29 | 1 6 . 8 . 1 13 . . . . . . . Explosive 17 | . . . . . . . . 4 4 5 . . 4 Electromagnetic 43 | 1 6 . . . . 36 . . . . . . . Robot Hit Streak 28 | 1 5 . 5 . . 28 . 11 9 2 . . 2 Robot Miss Streak 4 | . 1 . 1 . 1 4 . 3 3 2 . . 1 Penetration Max . | . . . . . . . . . . . . . . Secondary Targets 3 | . 1 . . . . 2 . . . . . . . Max Gunslinging Chain 1 | . 1 . . . . 1 . . . . . . . Shots Hit Robots 218 | 1 9 . 8 . . 114 . 67 15 3 . . 1 Core Hits 116 | 1 4 . 3 . . 48 . 29 14 9 . . 8 Critical Kills . | . . . . . . . . . . . . . . Critical Parts Destroyed 1 | . . . . . . 1 . . . . . . . Critical Strikes 3 | . . . . . . 2 . . 1 . . . . Destroy 1 | . . . . . . 1 . . . . . . . Corrupt 1 | . . . . . . 1 . . . . . . . Impale 1 | . . . . . . . . . 1 . . . . Melee Attacks 15 | . . . . . . . . . 13 . . . 2 Impact . | . . . . . . . . . . . . . . Slashing 2 | . . . . . . . . . . . . . 2 Piercing 13 | . . . . . . . . . 13 . . . . Sneak Attacks 6 | . . . . . . . . . 6 . . . . Combat Hostiles . | . . . . . . . . . . . . . . Follow-up Attacks . | . . . . . . . . . . . . . . Damage Inflicted 5724 | 12 114 . 70 . 5 2110 . 1343 1188 566 . . 316 Guns 3020 | 12 114 . 70 . . 1761 . 1063 . . . . . Cannons 208 | . . . . . . 200 . 8 . . . . . Explosions 1806 | . . . . . . 149 . 272 503 566 . . 316 Melee 685 | . . . . . . . . . 685 . . . . Ramming 5 | . . . . . 5 . . . . . . . . Kinetic 2395 | . . . 46 . . 1286 . 1063 . . . . . Thermal 407 | . 34 . 24 . . 349 . . . . . . . Explosive 1657 | . . . . . . . . 272 503 566 . . 316 Electromagnetic 567 | 12 80 . . . . 475 . . . . . . . Impact 8 | . . . . . . . . 8 . . . . . Slashing . | . . . . . . . . . . . . . . Piercing 685 | . . . . . . . . . 685 . . . . Highest Corruption 2 | . . . . . . 1 . . . 2 2 . . Average Corruption 1 | . . . . . . 1 . . . 2 1 . . Corruption Purged 2 | . . . . . . . . . . . 2 . . Corruption Blocked . | . . . . . . . . . . . . . . Effects 3 | . . . . . . 1 . . . . 2 . . Matter Fused 1 | . . . . . . 1 . . . . . . . Heat Flow Errors 1 | . . . . . . . . . . . 1 . . Data Loss (major) 1 | . . . . . . . . . . . 1 . . Overload Shots . | . . . . . . . . . . . . . . Overflow Damage 189 | . . . . . . . . 25 131 15 . . 18 Projectiles . | . . . . . . . . . . . . . . Explosions 96 | . . . . . . . . 25 38 15 . . 18 Melee 93 | . . . . . . . . . 93 . . . . Knockbacks . | . . . . . . . . . . . . . . Impact . | . . . . . . . . . . . . . . Kinetic . | . . . . . . . . . . . . . . Secondary . | . . . . . . . . . . . . . . Self-Inflicted Damage 292 | . . . . . 2 52 . 54 139 45 . . . Shots 6 | . . . . . . 1 . 2 2 1 . . . Rammed 1 | . . . . . 1 . . . . . . . . Targets Rammed 1 | . . . . . 1 . . . . . . . . Kicked . | . . . . . . . . . . . . . . Crushed . | . . . . . . . . . . . . . . Highest Temperature 270 | 18 174 . 59 . 8 100 . 5 3 1 270 . 2 Average Temperature 27 | 12 97 . 12 . 5 22 . 5 1 1 147 . 2 Received Heat Transfer 908 | . 66 105 80 . 54 393 . 72 . 18 . . 120 Siege Activations . | . . . . . . . . . . . . . . Martial Activations . | . . . . . . . . . . . . . . Shielding Activations . | . . . . . . . . . . . . . . Robots Disrupted . | . . . . . . . . . . . . . . Combat Hostiles . | . . . . . . . . . . . . . . Robots Corrupted . | . . . . . . . . . . . . . . Combat Hostiles . | . . . . . . . . . . . . . . Parts Fried . | . . . . . . . . . . . . . . Impact Corruptions . | . . . . . . . . . . . . . . Robots Melted . | . . . . . . . . . . . . . . Combat Hostiles . | . . . . . . . . . . . . . . Parts Melted . | . . . . . . . . . . . . . . Heat Transferred 521 | . 75 . 50 . . 396 . . . . . . . Parts Sabotaged . | . . . . . . . . . . . . . . Parts Stolen . | . . . . . . . . . . . . . . Parts Stripped . | . . . . . . . . . . . . . . Power Chain Reactions 1 | . . . . . . 1 . . . . . . . Alert | -11 -10 -9 -9 -9 -8 -8 -7 -7 -6 -6 -6 -6 -5 ------- Run | Yrd Mat Mat Min Exi Min Mat Fac DSF Fac Low Low Dat Pro Maximum Alert Level 1 | . . . . . . 1 . 1 1 . . . . Low Security (%) 93 | 100 100 100 100 . 100 94 100 92 68 . . . . Level 1 6 | . . . . . . 5 . 7 31 . . . . Level 2 . | . . . . . . . . . . . . . . Level 3 . | . . . . . . . . . . . . . . Level 4 . | . . . . . . . . . . . . . . Level 5 . | . . . . . . . . . . . . . . High Security . | . . . . . . . . . . . . . . Max Security . | . . . . . . . . . . . . . . Sterilizations 1 | . . . . . . . . 1 . . . . . Peak Influence 326 | 5 42 30 2 . 15 233 102 326 272 . . . . Initial 170 | . . . . . . . 102 40 170 . . . . Average 64 | . 3 3 . . 1 71 81 132 163 . . . . Influence Increases 1900 | 5 50 30 2 . 15 563 16 356 352 210 30 . 271 Destroy 0b10 Robot/C 960 | . 40 . . . . 340 . 260 80 100 . . 140 Destroy 0b10 Robot/NC 95 | 5 . . . . . 55 . . 35 . . . . Destroy Leader 198 | . 10 . . . . 94 . 60 14 20 . . . Allied During Kill 11 | . . . . . . . . . . . . . 11 Successful Hack 44 | . . . . . . . 16 . 28 . . . . Disable Machine 105 | . . . . . . 30 . . 75 . . . . Destroy Structure 97 | . . . 2 . . 14 . 21 60 . . . . Partial Spotted 45 | . . . . . . 30 . . 15 . . . . Lose Combat Pursuer 345 | . . 30 . . 15 . . 15 45 90 30 . 120 Influence Decreases 1789 | 5 50 30 2 . 15 336 185 88 414 361 143 . 160 Entered New Map 421 | . . . . . . . 125 18 156 99 23 . . Time Decay 1056 | 5 50 30 2 . 15 244 60 . 238 222 120 . 70 Lost Part 229 | . . . . . . 49 . 70 20 40 . . 50 Lost Ally 40 | . . . . . . . . . . . . . 40 Purge Threat 43 | . . . . . . 43 . . . . . . . Squads Dispatched 13 | . . 4 . . . 4 1 3 . . . . 1 Investigation 5 | . . 3 . . . 1 1 . . . . . . Extermination . | . . . . . . . . . . . . . . Reinforcement 7 | . . 1 . . . 3 . 3 . . . . . Assault 1 | . . . . . . . . . . . . . 1 Garrison . | . . . . . . . . . . . . . . Intercept . | . . . . . . . . . . . . . . Searches Triggered . | . . . . . . . . . . . . . . Construction Impeded . | . . . . . . . . . . . . . . Haulers Reinforced . | . . . . . . . . . . . . . . Active Scanning Responses . | . . . . . . . . . . . . . . Cargo Convoy Interrupts . | . . . . . . . . . . . . . . Stealth | -11 -10 -9 -9 -9 -8 -8 -7 -7 -6 -6 -6 -6 -5 --------- Run | Yrd Mat Mat Min Exi Min Mat Fac DSF Fac Low Low Dat Pro Distress Signals 6 | . 1 1 . . . 4 . . . . . . . Communications Jammed . | . . . . . . . . . . . . . . Distress Signals . | . . . . . . . . . . . . . . Times Spotted 113 | . 2 7 1 . 4 33 . 17 8 12 5 . 24 Peak Tracking Total 9 | . 3 6 1 . 3 5 . 5 5 6 3 . 9 Tactical Retreats 14 | . . 1 . . 1 . . 1 1 3 1 . 6 Traps | -11 -10 -9 -9 -9 -8 -8 -7 -7 -6 -6 -6 -6 -5 ------- Run | Yrd Mat Mat Min Exi Min Mat Fac DSF Fac Low Low Dat Pro Traps Triggered 3 | . 1 . . . . 1 . 1 . . . . . Indirectly . | . . . . . . . . . . . . . . Trap Hack Attempts . | . . . . . . . . . . . . . . Triggered . | . . . . . . . . . . . . . . Disarmed . | . . . . . . . . . . . . . . Reprogrammed . | . . . . . . . . . . . . . . Reused . | . . . . . . . . . . . . . . Traps Extracted . | . . . . . . . . . . . . . . Installed . | . . . . . . . . . . . . . . Triggered . | . . . . . . . . . . . . . . Machines | -11 -10 -9 -9 -9 -8 -8 -7 -7 -6 -6 -6 -6 -5 ---------- Run | Yrd Mat Mat Min Exi Min Mat Fac DSF Fac Low Low Dat Pro Machines Disabled 7 | . . . . . . 2 . . 5 . . . . Max in Single Turn 3 | . . . . . . 1 . . 3 . . . . Machines Repaired . | . . . . . . . . . . . . . . Machines Dismantled . | . . . . . . . . . . . . . . Machines Sabotaged . | . . . . . . . . . . . . . . Overloaded Fab Kills . | . . . . . . . . . . . . . . Hacking | -11 -10 -9 -9 -9 -8 -8 -7 -7 -6 -6 -6 -6 -5 --------- Run | Yrd Mat Mat Min Exi Min Mat Fac DSF Fac Low Low Dat Pro Machines Accessed 22 | . 1 3 . 2 . 4 2 . 4 . 2 4 . Terminals 13 | . 1 3 . . . 4 2 . 3 . . . . Fabricators 1 | . . . . . . . . . 1 . . . . Repair Stations . | . . . . . . . . . . . . . . Recycling Units . | . . . . . . . . . . . . . . Scanalyzers . | . . . . . . . . . . . . . . Garrison Access . | . . . . . . . . . . . . . . Total Hacks 96 | . 3 9 . 24 . 14 4 . 10 . 6 26 . Successful 66 | . . . . 24 . 3 2 . 5 . 6 26 . Failed 30 | . 3 9 . . . 11 2 . 5 . . . . Catastrophic 8 | . 1 2 . . . 3 . . 2 . . . . Database Lockouts . | . . . . . . . . . . . . . . Manual 23 | . 3 9 . 2 . 2 . . 7 . . . . Terminals 37 | . 3 9 . . . 14 4 . 7 . . . . Fabricators 3 | . . . . . . . . . 3 . . . . Repair Stations . | . . . . . . . . . . . . . . Recycling Units . | . . . . . . . . . . . . . . Scanalyzers . | . . . . . . . . . . . . . . Garrison Access . | . . . . . . . . . . . . . . Terminal Hacks 61 | . . . . 24 . 2 2 . 1 . 6 26 . Record 39 | . . . . 23 . . . . . . 5 11 . Part Schematic 9 | . . . . . . . . . . . . 9 . Robot Schematic 3 | . . . . . . . . . . . . 3 . Prototype ID Bank 3 | . . . . . . . . . . . . 3 . Open Door 1 | . . . . . . . . . . . 1 . . Open DSF 1 | . . . . . . . 1 . . . . . . Branch Access Points 1 | . . . . . . 1 . . . . . . . Terminal Index 1 | . . . . . . . . . 1 . . . . Unreport Threat 1 | . . . . . . 1 . . . . . . . Registered Components 1 | . . . . . . . 1 . . . . . . Proto ID Catalog 1 | . . . . 1 . . . . . . . . . Fabricator Hacks 1 | . . . . . . . . . 1 . . . . Network Status 1 | . . . . . . . . . 1 . . . . Repair Station Hacks . | . . . . . . . . . . . . . . Recycling Unit Hacks . | . . . . . . . . . . . . . . Scanalyzer . | . . . . . . . . . . . . . . Garrison Access Hacks . | . . . . . . . . . . . . . . Unauthorized Hacks 4 | . . . . . . 1 . . 3 . . . . Terminals 4 | . . . . . . 1 . . 3 . . . . Assimilate 1 | . . . . . . 1 . . . . . . . Botnet 2 | . . . . . . . . . 2 . . . . Operators 1 | . . . . . . . . . 1 . . . . Fabricators . | . . . . . . . . . . . . . . Repair Stations . | . . . . . . . . . . . . . . Recycling Units . | . . . . . . . . . . . . . . Scanalyzers . | . . . . . . . . . . . . . . Garrison Access . | . . . . . . . . . . . . . . Data Cores Recovered 2 | . . . . . . 1 . . 1 . . . . Used . | . . . . . . . . . . . . . . Hacking Detections 13 | . 1 3 . . . 4 1 . 4 . . . . Full Trace Events 7 | . 1 3 . . . 2 1 . . . . . . Feedback Events . | . . . . . . . . . . . . . . Feedback Blocked . | . . . . . . . . . . . . . . Robot Schematics Acquired 3 | . . . . . . . . . . . . 3 . Robots Built . | . . . . . . . . . . . . . . Authchips . | . . . . . . . . . . . . . . Time . | . . . . . . . . . . . . . . Total Robot Build Rating . | . . . . . . . . . . . . . . Part Schematics Acquired 9 | . . . . . . . . . . . . 9 . Parts Built . | . . . . . . . . . . . . . . Authchips . | . . . . . . . . . . . . . . Time . | . . . . . . . . . . . . . . Total Part Build Rating . | . . . . . . . . . . . . . . Parts Repaired . | . . . . . . . . . . . . . . Time . | . . . . . . . . . . . . . . Parts Recycled . | . . . . . . . . . . . . . . Recycled Matter . | . . . . . . . . . . . . . . Retrieved Matter . | . . . . . . . . . . . . . . Retrieved Components . | . . . . . . . . . . . . . . Parts Scanalyzed . | . . . . . . . . . . . . . . Part Schematics Acquired . | . . . . . . . . . . . . . . Parts Damaged . | . . . . . . . . . . . . . . Bothacking | -11 -10 -9 -9 -9 -8 -8 -7 -7 -6 -6 -6 -6 -5 ------------ Run | Yrd Mat Mat Min Exi Min Mat Fac DSF Fac Low Low Dat Pro Used RIF Installer . | . . . . . . . . . . . . . . Robots Hacked 3 | . . . . . . . . . 2 1 . . . Non-combat 2 | . . . . . . . . . 2 . . . . Combat 1 | . . . . . . . . . . 1 . . . Robot Hacks Applied 5 | . . . . . . . . . 4 1 . . . parse_system 1 | . . . . . . . . . . 1 . . . no_distress 1 | . . . . . . . . . 1 . . . . find_fabricator 1 | . . . . . . . . . 1 . . . . find_dsf 1 | . . . . . . . . . 1 . . . . check_alert 1 | . . . . . . . . . 1 . . . . Relay Couplers Released . | . . . . . . . . . . . . . . Fabnet Peak Effective % . | . . . . . . . . . . . . . . Robots Rewired 1 | . . . . . . . . . . . . . 1 Allies Hacked . | . . . . . . . . . . . . . . Hacks Repelled . | . . . . . . . . . . . . . . Allies | -11 -10 -9 -9 -9 -8 -8 -7 -7 -6 -6 -6 -6 -5 -------- Run | Yrd Mat Mat Min Exi Min Mat Fac DSF Fac Low Low Dat Pro Total Allies 2 | . . . . . . . . . . . . . 2 Largest Group 1 | . . . . . . . . . . . . . 1 Highest-Rated Group 96 | . . . . . . . . . . . . . 96 Highest-Rated Ally 96 | . . . . . . . . . . . . . 96 Initial Warlord ECA Mod 44 | . . . . . . . . . 9 9 9 9 8 Total Orders . | . . . . . . . . . . . . . . Ally Attacks 8 | . . . . . . . . . . . . . 8 Total Damage 260 | . . . . . . . . . . . . . 260 Kills 3 | . . . . . . . . . . . . . 3 Allies Corrupted . | . . . . . . . . . . . . . . Allies Melted . | . . . . . . . . . . . . . . Intel | -11 -10 -9 -9 -9 -8 -8 -7 -7 -6 -6 -6 -6 -5 ------- Run | Yrd Mat Mat Min Exi Min Mat Fac DSF Fac Low Low Dat Pro Active Infowar (turns) 5436 | 4 836 215 274 379 241 675 136 452 511 479 647 408 179 A.S.S. 154 | . . . . . . . . . 154 . . . . Terrain 2539 | . . . 271 379 171 . . . 6 478 647 408 179 Structural 1037 | . . . . . . . 136 452 378 71 . . . Seismic 2624 | 4 836 215 274 379 241 675 . . . . . . . Cloaking 13 | . . . . . . . . . . . . . 13 Robot Analysis Total . | . . . . . . . . . . . . . . Derelict Logs Recovered 4 | . . . . . . . . . . 1 2 . 1 Drone Launches . | . . . . . . . . . . . . . . Drone Recoveries . | . . . . . . . . . . . . . . Exploration | -11 -10 -9 -9 -9 -8 -8 -7 -7 -6 -6 -6 -6 -5 ------------- Run | Yrd Mat Mat Min Exi Min Mat Fac DSF Fac Low Low Dat Pro Turns Passed 7130 | 63 836 215 274 379 241 2185 137 452 517 479 647 408 297 Spaces Moved 5208 | 50 279 181 192 303 166 857 71 154 685 448 996 132 694 Core 228 | 3 . . . . . . . . . . . . 225 Treads 252 | . 221 . 30 . . 1 . . . . . . . Legs . | . . . . . . . . . . . . . . Wheels 2002 | 47 58 181 162 303 166 856 71 154 4 . . . . Hover . | . . . . . . . . . . . . . . Flight 2726 | . . . . . . . . . 681 448 996 132 469 Fastest Speed 27 | 50 90 115 115 115 130 130 190 190 27 32 32 32 32 Average Speed 92 | 88 208 115 122 124 140 158 190 190 40 89 33 32 39 Slowest Speed 355 | 100 240 115 160 145 145 240 190 190 190 115 115 32 355 Overloaded Moves . | . . . . . . . . . . . . . . Propulsion Burnouts . | . . . . . . . . . . . . . . Robots Hopped 2 | . . . . . . . . . . . 2 . . Potential Cave-ins . | . . . . . . . . . . . . . . Cave-ins Triggered . | . . . . . . . . . . . . . . Exploration Rate (%) 47 | 3 28 24 41 69 40 60 2 89 13 68 72 75 78 Regions Visited 13 Branch Regions 7 Pre-discovered Areas 4 | . . . . 1 . . . . . 1 1 1 . Known Exits Taken 3 | . . . . . . . 1 . 1 1 . . . Unknown Exits Taken 9 | 1 1 1 1 1 1 1 . . . . 1 1 . Scrap Searched 8 | . . . . . 1 . . . . 2 2 . 3 Spaces Dug 9 | . . . . . . 1 . . . . . . 8 Terrain Destroyed 193 | . . . 2 . . 11 . 24 67 52 . . 37 Melee . | . . . . . . . . . . . . . . Projectile 6 | . . . 2 . . 4 . . . . . . . AOE 187 | . . . . . . 7 . 24 67 52 . . 37 Terrain Rammed . | . . . . . . . . . . . . . . Walls Destroyed . | . . . . . . . . . . . . . . Machines Disabled . | . . . . . . . . . . . . . . Actions | -11 -10 -9 -9 -9 -8 -8 -7 -7 -6 -6 -6 -6 -5 --------- Run | Yrd Mat Mat Min Exi Min Mat Fac DSF Fac Low Low Dat Pro Total 7286 | 63 521 188 207 305 171 1578 73 253 895 521 1304 497 710 Wait 1724 | . 233 6 . . . 585 . 34 139 61 300 366 . Move 5192 | 49 278 180 191 302 165 856 71 153 684 447 991 131 694 Hop 2 | . . . . . . . . . . . 2 . . Pick Up 61 | 6 1 1 . 2 2 38 . 5 3 1 2 . . Fast Attach 24 | 7 . . . . . 2 . 3 8 . 3 . 1 Attach 36 | . . 1 3 . 1 8 2 7 8 2 . . 4 Detach 8 | . . . . . . 1 . 1 2 2 1 . 1 Swap 20 | . 2 . . 1 . 10 . 4 3 . . . . Drop 54 | . 1 . . . 1 19 . 4 24 1 4 . . Fire 135 | 1 6 . 13 . 1 59 . 33 11 7 . . 4 Melee 15 | . . . . . . . . . 13 . . . 2 Ram 1 | . . . . . 1 . . . . . . . . Kick . | . . . . . . . . . . . . . . Crush . | . . . . . . . . . . . . . . Escape Stasis 8 | . . . . . . . . 8 . . . . . Rewire 5 | . . . . . . . . 1 . . . . 4 Trap . | . . . . . . . . . . . . . . Miscellaneous 1 | . . . . . . . . . . . 1 . . Route ------- -11/Scrapyard -10/Materials -9/Materials -9/Mines (discovered 2 exits: *Mat / *Exi) -9/Exiles -8/Mines -8/Materials (discovered 3 exits: *Fac / Sto x2) -7/Factory -7/DSF -6/Factory -6/Lower Caves -6/Lower Caves -6/Data Miner -5/Proximity Caves History --------- Turn | Location | Event 22 | -11/Scrapyard | Discovered new exit (range 16) 64 | -11/Scrapyard | Entered Materials 110 | -10/Materials | Discovered new exit (range 15) 311 | -10/Materials | Build established: Mutant 900 | -10/Materials | Entered another Materials area 900 | -9/Materials | Evolved 2 slots: Propulsion x1, Utility x1 1065 | -9/Materials | Discovered new exit (range 13) 1115 | -9/Materials | Entered Mines 1136 | -9/Mines | Discovered new exit (range 8) 1251 | -9/Mines | Deemed a non-threat by the Exiles lab entrance 1251 | -9/Mines | Discovered new exit (range 5) 1304 | -9/Mines | Excavation squad dispatched 1304 | -9/Mines | A large section of the Mines collapsed 1389 | -9/Mines | Entered Exiles 1419 | -9/Exiles | Met 8R-AWN 1439 | -9/Exiles | Met EX-HEX 1481 | -9/Exiles | Met EX-BIN 1494 | -9/Exiles | Aligned with FarCom system 1495 | -9/Exiles | Given EX-Vault access code 1526 | -9/Exiles | Opened EX-Vault 1532 | -9/Exiles | Found Cloak of Protection 1556 | -9/Exiles | Warned to stay clear of 0b10 Research branches 1664 | -9/Exiles | Met EX-DEC 1691 | -9/Exiles | Learned location of Zion (-7) 1749 | -9/Exiles | Discovered new exit (range 14) 1768 | -9/Exiles | Left Exiles lab with Cloak of Protection 1768 | -9/Exiles | Entered Mines 1976 | -8/Mines | Discovered new exit (range 15) 2009 | -8/Mines | Entered Materials 2009 | -8/Materials | Evolved 2 slots: Utility x1, Weapon x1 2497 | -8/Materials | Build established: Skirmisher 2865 | -8/Materials | Lost 5 parts (1p3n1w) 3994 | -8/Materials | Identified exit to Storage 4153 | -8/Materials | Discovered new exit (range 15) 4194 | -8/Materials | Entered Factory 4194 | -7/Factory | Evolved 2 slots: Propulsion x1, Utility x1 4331 | -7/Factory | Identified exit to DSF 4331 | -7/Factory | Entered DSF 4403 | -7/DSF | Additional patrols routed to DSF 4475 | -7/DSF | Lost 3 parts (1p2w) 4508 | -7/DSF | Found Prototype Device 4733 | -7/DSF | Discovered new exit (range 15) 4746 | -7/DSF | Lost 3 parts (2u1w) 4751 | -7/DSF | Sterilization system engaged 4771 | -7/DSF | Ambient heat levels rising (+10) 4783 | -7/DSF | Entered Factory 4783 | -6/Factory | Evolved 2 slots: Propulsion x1, Utility x1 4792 | -6/Factory | Identified Active Sensor Suite 4987 | -6/Factory | Discovered new exit (range 6) 4998 | -6/Factory | Identified exit to Lower Caves 5170 | -6/Factory | Build established: Scout 5300 | -6/Factory | Entered Lower Caves 5325 | -6/Lower Caves | Attracted the attention of an 0b10 outpost 5333 | -6/Lower Caves | Met a Warlord Commander 5334 | -6/Lower Caves | Learned location of Warlord (-5) 5335 | -6/Lower Caves | Warlord Commander delivered Encrypted Comm Array 5336 | -6/Lower Caves | Found Encrypted Comm Array 5406 | -6/Lower Caves | Lost 3 parts (2n1u) 5579 | -6/Lower Caves | Encountered a Warlord checkpoint 5622 | -6/Lower Caves | Identified exit to Lower Caves 5671 | -6/Lower Caves | Build established: Mutant 5779 | -6/Lower Caves | Entered another Lower Caves area 5848 | -6/Lower Caves | Discovered new exit (range 8) 5872 | -6/Lower Caves | Entered an active Warlord outpost 5875 | -6/Lower Caves | Learned Extension trap positions 5875 | -6/Lower Caves | Learned Armory stockpile data 6277 | -6/Lower Caves | Found DRS Beacon 6294 | -6/Lower Caves | Activated DRS Beacon 6315 | -6/Lower Caves | Build established: Sprinter 6426 | -6/Lower Caves | Entered Data Miner 6426 | -6/Data Miner | Discovered new exit (range 6) 6433 | -6/Data Miner | Met Data Miner 6442 | -6/Data Miner | Learned location of Section 7 (-2) 6442 | -6/Data Miner | Acquired the access code to Warlord's prototype stash 6611 | -6/Data Miner | Received God Mode back door access code from Data Miner 6834 | -6/Data Miner | Entered Proximity Caves 6911 | -5/Proximity Caves | Learned location of 1 exit from Factory 6968 | -5/Proximity Caves | Attracted the attention of an 0b10 checkpoint 6981 | -5/Proximity Caves | Attracted the attention of an 0b10 outpost 7013 | -5/Proximity Caves | Released all parts (8) 7023 | -5/Proximity Caves | Core integrity fell below 50% 7043 | -5/Proximity Caves | Lost 5 parts (1p1n1u2w) 7067 | -5/Proximity Caves | Escorted by Enhanced Grunt 7100 | -5/Proximity Caves | Core integrity fell below 20% 7101 | -5/Proximity Caves | Spotted B-75 Beast 7131 | -5/Proximity Caves | Destroyed by S-27 Virus with Autogun Last Messages --------------- 07013_ Released Cloak of Protection. 07013_ Released Power Sword. 07042_ Attempting to rewire L-41 Fighter. 07046_ L-41 Fighter rewired. 07049_ Acquired 18 matter. 07049_ G-50 Soldier destroyed. 07051_ Slug penetrates Fighter 6a. 07054_ Slug penetrates Wall. 07054_ E-15 Imp sneak attacks. 07054_ Fighter 6a Imp. Deuterium Engine blown off. 07054_ Fighter 6a Carbon-fiber Leg blown off. 07054_ E-15 Imp destroyed. 07054_ L-41 Fighter sneak attacks. 07067_ Enhanced Grunt: "Protecting LRC-V3." 07069_ Penetrated by Slug. 07069_ S-27 Virus destroyed. 07078_ Critical hit (Burn: +37). 07083_ Acquired Encrypted Comm Array. Map ----- +----------------------------------------------------+ | ### ##???? ##???? ##??????????????? | | ### #####???## #??? ##?????????????? | | ##?# ###???????# ##?? ????????????? | | ##### ##????????## ##? #????????????? | | ##???????## ## #????????????? | | ##### ###?#??### ##???????????? | | ?#### # #???## #### ????????????? | | ## ##### ##???# ?????????????? | | # ### ###### #???????????????? | | # #???????????????? | | # #????????????????? | | ##### #### ## ##????????????????? | | ?#######?## ## ####### ##?????????????????? | | #???##???## ####?????## ##??????????????????? | | ##?? ### #?????????# ##??????????????????? | | ##### ### ????????# #######????????????? | | ## ???????# ##???????????? | | ??????## #???????????? | | #### #??####### #???????????? | | ####?? #### #?## ##### #???????????? | | #?##?? ##???###?# ## ## #???????????? | | #?### #?#??????## sss ## ##???????????? | | ##?# #??#??#??## s s #????????????? | | ## ###?#?????# #????????????? | | ##????###???????## ## ##????????????? | | ##????? ???##?????######@ ## #????????????? | | ##???##?#??###?????????## ### ?????????? | | ##?#?#??#?###???????????# ##### ### ????????? | | ###?#??? ??#????????????? #???? #????????????? | | #??#### ???????????????? #????? #????????????? | | ?#??#??#? #??????????? ##????? ????????????? | | ###??##?# ? ???????????## ##??????? ???????????? | | ##?????##???????????????####???????? ??????????? | | ##???###?? ?????????????????????????? ??????????? | | ###??#???????????????????????????????????????????? | | ###?#????????????????????????????????????????????? | | ####?##??????????????????????????????????????????? | | ??#?????????????????????????????????????????????? | | #???#????????????????????????????????????????????? | | ##???????????????????????????????????????????????? | | ## ??#???????????????????????????????????????????? | | #???????????????????????????????????????????? | | ? ?? ????#??????????????????????????????????????? | | ? ???????????????????????????????????????????????? | | ????? ??????#??#?????????????????????????????????? | | ? ? ?????????????????????????????????????????? | | ?#?# ????????????????????????????????????????? | | ??#?????? ????????#??????????????????????????????? | | ??????#? ????????????????????????????????????????? | | ?#######?? ???#??????????????????????????????????? | +----------------------------------------------------+ Best States ------------- Heat Dissipation 56 Energy Generation 16 Energy Capacity 290 Matter Stores 300 Matter Capacity 300 Sight Range 16 Robot Scan Range 20 Terrain Scan Range 20 Terrain Scan Density 210 Cloak Strength 5 Additional Mass Support 9 Armor Coverage 300 Propulsion Shielding 33 Evasion (%) 64 Melee Accuracy 12 Core Analysis 6 Recoil Reduction 6 Item Schematics ----------------- Combat Drone Bay | -6/Data Miner | Free Lgt. Regenerative Plating | -6/Data Miner | Free Enh. Armored Leg | -6/Data Miner | Free Exp. Heat Sink | -6/Data Miner | Free Plasma Sword | -6/Data Miner | Free Adv. Medium Treads | -6/Data Miner | Free Quantum Capacitor | -6/Data Miner | Free Force Lance | -6/Data Miner | Free Phase Gun | -6/Data Miner | Free Robot Schematics ------------------ G-50 Soldier | -6/Data Miner | Free R-10 Processor | -6/Data Miner | Free W-44 Eye | -6/Data Miner | Free Fabricated ------------ Nothing Repaired ---------- Nothing Alien Tech Used ----------------- None Achievements -------------- None Challenges ------------ None Game ------ Seed MeleeWaveInsulator Manual? 0 Play Time 01:05:05 Cumulative 98.3 hours Start 2025.08.04 @ 17:39:08 End 2025.08.06 @ 14:37:33 Sessions 5 Manual Loads 0 Difficulty Rogue Special Mode None Game No. 122 Rogue 122 Adventurer 0 Explorer 0 Win Type - Total 0 Types 0/0/0/0/0/0/0/0/0/0 Lore% 60 Gallery% 45 Achievement% 43 Wizard Run 0 Options --------- Layout 1 ASCII 0 Keyboard 0 Movement Arrows Keybinds 0 Fullscreen 1 Font 24/Smallcaps Map View 50x35 Zoom Use 0% Tactical HUD 1 Map Filters NONE Filters NONE Steam 1 RUN: e2bc23bf-44cf-4d07-8284-17149aaf17f3